[Event "*** Titled Tuesday Blitz"]
[Site "Chess.com"]
[Date "2019.10.01"]
[Round "8"]
[White "colegiodemadrid"]
[Black "cukus"]
[Result "1/2-1/2"]
[WhiteElo "2356"]
[BlackElo "2464"]
[TimeControl "180+2"]
[EndTime "14:57:37 PDT"]
[Termination "Game drawn by repetition"]

1. Nf3 {[%clk 0:03:01.9]} 1... c5 {[%clk 0:02:59.4]} 2. e4 {[%clk 0:03:01.9]}
2... d6 {[%clk 0:02:56.5]} 3. d4 {[%clk 0:03:02.8]} 3... cxd4 {[%clk 0:02:56.9]}
4. Nxd4 {[%clk 0:03:04.7]} 4... Nf6 {[%clk 0:02:56.8]} 5. Nc3 {[%clk 0:03:06.2]}
5... a6 {[%clk 0:02:57.5]} 6. Qd3 {[%clk 0:03:06.5]} 6... e5 {[%clk 0:02:56.1]}
7. Nf5 {[%clk 0:03:06.8]} 7... g6 {[%clk 0:02:47.9]} 8. Ne3 {[%clk 0:03:06.9]}
8... Bg7 {[%clk 0:02:49]} 9. Ned5 {[%clk 0:03:07.5]} 9... O-O {[%clk 0:02:48.7]}
10. Bg5 {[%clk 0:03:07.9]} 10... Nbd7 {[%clk 0:02:48.2]} 11. h4 {[%clk
0:03:08.1]} 11... h6 {[%clk 0:02:36.7]} 12. Bxf6 {[%clk 0:03:08.2]} 12... Nxf6
{[%clk 0:02:35.8]} 13. O-O-O {[%clk 0:03:09]} 13... Be6 {[%clk 0:02:33.8]} 14.
f3 {[%clk 0:03:06.2]} 14... Rc8 {[%clk 0:02:32.3]} 15. g4 {[%clk 0:03:07.1]}
15... Nxd5 {[%clk 0:02:28.5]} 16. Nxd5 {[%clk 0:03:05.6]} 16... b5 {[%clk
0:02:23.1]} 17. h5 {[%clk 0:02:53.9]} 17... g5 {[%clk 0:02:22.3]} 18. Kb1 {[%clk
0:02:53.3]} 18... Rc5 {[%clk 0:02:14.4]} 19. Ne3 {[%clk 0:02:54.1]} 19... Rc6
{[%clk 0:02:00.3]} 20. Nf5 {[%clk 0:02:52.3]} 20... Bxf5 {[%clk 0:01:59.6]} 21.
gxf5 {[%clk 0:02:53.8]} 21... Qb6 {[%clk 0:01:51.1]} 22. Bh3 {[%clk 0:02:50.6]}
22... Bf6 {[%clk 0:01:48.5]} 23. Rh2 {[%clk 0:02:50.7]} 23... Qc5 {[%clk
0:01:46.1]} 24. Qd5 {[%clk 0:02:48.3]} 24... Qb6 {[%clk 0:01:43.1]} 25. Rhd2
{[%clk 0:02:47.7]} 25... Rd8 {[%clk 0:01:43.1]} 26. Bf1 {[%clk 0:02:47.8]} 26...
Rc5 {[%clk 0:01:35.4]} 27. Qb3 {[%clk 0:02:41.9]} 27... d5 {[%clk 0:01:23]} 28.
Rxd5 {[%clk 0:02:29.3]} 28... Rcxd5 {[%clk 0:01:23]} 29. Rxd5 {[%clk 0:02:27.2]}
29... Rxd5 {[%clk 0:01:21.9]} 30. Qxd5 {[%clk 0:02:17.3]} 30... Qf2 {[%clk
0:01:19.5]} 31. Qd1 {[%clk 0:02:17.7]} 31... Kg7 {[%clk 0:01:15.5]} 32. a4
{[%clk 0:02:18.6]} 32... Qc5 {[%clk 0:01:13.2]} 33. axb5 {[%clk 0:02:18.4]}
33... axb5 {[%clk 0:01:13.7]} 34. Qd3 {[%clk 0:02:19.7]} 34... b4 {[%clk
0:01:13.7]} 35. Qc4 {[%clk 0:02:17.4]} 35... Qxc4 {[%clk 0:01:08.7]} 36. Bxc4
{[%clk 0:02:17.4]} 36... Be7 {[%clk 0:00:57.8]} 37. Ka2 {[%clk 0:02:18.1]} 37...
Kf8 {[%clk 0:00:58.7]} 38. Kb3 {[%clk 0:02:19.2]} 38... Ke8 {[%clk 0:00:59.6]}
39. Ka4 {[%clk 0:02:20.7]} 39... f6 {[%clk 0:00:59.7]} 40. Kb5 {[%clk
0:02:21.9]} 40... Kd7 {[%clk 0:01:00.6]} 41. Bd5 {[%clk 0:02:19.4]} 41... Kc7
{[%clk 0:01:01.3]} 42. c4 {[%clk 0:02:13.6]} 42... bxc3 {[%clk 0:01:01.4]} 43.
bxc3 {[%clk 0:02:15.5]} 43... Bd6 {[%clk 0:01:01.1]} 44. c4 {[%clk 0:02:16.5]}
44... Ba3 {[%clk 0:01:01.2]} 45. c5 {[%clk 0:02:17.7]} 45... Bb2 {[%clk
0:01:01.3]} 46. Bb3 {[%clk 0:02:18.8]} 46... Bd4 {[%clk 0:00:56.5]} 47. Kc4
{[%clk 0:02:19.3]} 47... Kd7 {[%clk 0:00:57.3]} 48. Kd5 {[%clk 0:02:19.7]} 48...
g4 {[%clk 0:00:54.4]} 49. fxg4 {[%clk 0:02:19.7]} 49... Be3 {[%clk 0:00:55]} 50.
Ba4+ {[%clk 0:02:20]} 50... Kc7 {[%clk 0:00:55.2]} 51. Bb5 {[%clk 0:02:16.4]}
51... Bg5 {[%clk 0:00:55.6]} 52. Ke6 {[%clk 0:02:16.8]} 52... Bh4 {[%clk
0:00:53.6]} 53. Kf7 {[%clk 0:02:09.9]} 53... Bg5 {[%clk 0:00:53.4]} 54. Kg7
{[%clk 0:02:10.8]} 54... Kb7 {[%clk 0:00:53.6]} 55. Kg6 {[%clk 0:02:06.1]} 55...
Kc7 {[%clk 0:00:54.3]} 56. Kf7 {[%clk 0:02:07.4]} 56... Bh4 {[%clk 0:00:54]} 57.
Kf8 {[%clk 0:02:06]} 57... Bg5 {[%clk 0:00:54]} 58. Kg7 {[%clk 0:02:07.5]} 58...
Kb7 {[%clk 0:00:54.4]} 59. Kg6 {[%clk 0:02:08.7]} 59... Kc7 {[%clk 0:00:54.2]}
60. Kg7 {[%clk 0:02:10]} 1/2-1/2

[Event "*** Titled Tuesday Blitz"]
[Site "Chess.com"]
[Date "2019.10.01"]
[Round "8"]
[White "MarcoRiehle"]
[Black "DonRodrigue"]
[Result "0-1"]
[WhiteElo "2588"]
[BlackElo "2715"]
[TimeControl "180+2"]
[EndTime "14:57:39 PDT"]
[Termination "DonRodrigue won by resignation"]

1. e4 {[%clk 0:03:01.9]} 1... c5 {[%clk 0:03:00.8]} 2. a3 {[%clk 0:01:38.4]}
2... Nc6 {[%clk 0:03:00.7]} 3. b4 {[%clk 0:01:36.8]} 3... cxb4 {[%clk
0:03:00.6]} 4. axb4 {[%clk 0:01:38.7]} 4... Nxb4 {[%clk 0:03:00.7]} 5. c3 {[%clk
0:01:40.1]} 5... Nc6 {[%clk 0:03:01.1]} 6. d4 {[%clk 0:01:41.6]} 6... d5 {[%clk
0:03:00.8]} 7. exd5 {[%clk 0:01:43.5]} 7... Qxd5 {[%clk 0:03:00.7]} 8. Na3
{[%clk 0:01:44.9]} 8... a6 {[%clk 0:02:54.4]} 9. Nb5 {[%clk 0:01:45.3]} 9... Qd8
{[%clk 0:02:52.9]} 10. d5 {[%clk 0:01:40]} 10... Na5 {[%clk 0:02:51]} 11. Nd4
{[%clk 0:01:26.8]} 11... Qxd5 {[%clk 0:02:49.6]} 12. Ngf3 {[%clk 0:01:22.4]}
12... Bd7 {[%clk 0:02:50.3]} 13. Bd3 {[%clk 0:01:20.3]} 13... g6 {[%clk
0:02:48.6]} 14. O-O {[%clk 0:01:20.6]} 14... Bg7 {[%clk 0:02:49.6]} 15. Re1
{[%clk 0:01:20.3]} 15... Rc8 {[%clk 0:02:45.6]} 16. Be4 {[%clk 0:01:17.6]} 16...
Qc5 {[%clk 0:02:44.6]} 17. Be3 {[%clk 0:00:53.4]} 17... Qc7 {[%clk 0:02:43.2]}
18. Bd5 {[%clk 0:00:41.4]} 18... Nf6 {[%clk 0:02:41.5]} 19. Bxf7+ {[%clk
0:00:41.6]} 19... Kxf7 {[%clk 0:02:41.9]} 20. Ng5+ {[%clk 0:00:43]} 20... Kg8
{[%clk 0:02:38.9]} 21. Nde6 {[%clk 0:00:37.4]} 21... Bxe6 {[%clk 0:02:38.3]} 22.
Nxe6 {[%clk 0:00:39.3]} 22... Qc6 {[%clk 0:02:39.3]} 23. Nxg7 {[%clk 0:00:38.2]}
23... Kxg7 {[%clk 0:02:39.1]} 24. Rxa5 {[%clk 0:00:38.8]} 24... Qxc3 {[%clk
0:02:38.2]} 25. Bd2 {[%clk 0:00:33]} 25... Qc7 {[%clk 0:02:37.4]} 26. Rae5
{[%clk 0:00:34.2]} 26... Rhe8 {[%clk 0:02:34.7]} 27. Bg5 {[%clk 0:00:33.9]}
27... Rcd8 {[%clk 0:02:31.5]} 28. Qf3 {[%clk 0:00:32.4]} 28... Rd6 {[%clk
0:02:28.5]} 29. h4 {[%clk 0:00:28.9]} 29... h6 {[%clk 0:02:26.6]} 30. Bf4 {[%clk
0:00:28.6]} 30... Qd7 {[%clk 0:02:24.9]} 31. Qe3 {[%clk 0:00:26.2]} 31... Kg8
{[%clk 0:02:17.3]} 32. Rxe7 {[%clk 0:00:22.4]} 32... Rxe7 {[%clk 0:02:15.8]} 33.
Qxe7 {[%clk 0:00:24.3]} 33... Qxe7 {[%clk 0:02:16.7]} 34. Rxe7 {[%clk
0:00:25.8]} 34... Rd1+ {[%clk 0:02:18.2]} 35. Kh2 {[%clk 0:00:26.9]} 35... Rb1
{[%clk 0:02:09.5]} 36. f3 {[%clk 0:00:26]} 36... Nd5 {[%clk 0:02:07.7]} 37. Re8+
{[%clk 0:00:23.9]} 37... Kf7 {[%clk 0:02:08.4]} 38. Re4 {[%clk 0:00:25.3]} 38...
Nxf4 {[%clk 0:02:09.2]} 39. Rxf4+ {[%clk 0:00:27.2]} 39... Kg7 {[%clk
0:02:10.6]} 40. Rd4 {[%clk 0:00:26.5]} 40... a5 {[%clk 0:02:06.5]} 41. g4 {[%clk
0:00:23.6]} 41... b5 {[%clk 0:02:04.5]} 42. Rd7+ {[%clk 0:00:23.5]} 42... Kf8
{[%clk 0:02:05.7]} 43. Rd6 {[%clk 0:00:23.9]} 43... a4 {[%clk 0:02:03.4]} 44.
Rxg6 {[%clk 0:00:23.7]} 44... a3 {[%clk 0:02:04.7]} 45. Ra6 {[%clk 0:00:24.4]}
45... b4 {[%clk 0:02:04.4]} 46. g5 {[%clk 0:00:24.8]} 46... hxg5 {[%clk
0:02:03]} 47. hxg5 {[%clk 0:00:26.7]} 47... Ra1 {[%clk 0:02:04.4]} 48. g6 {[%clk
0:00:19.3]} 48... b3 {[%clk 0:02:03.2]} 49. f4 {[%clk 0:00:13.7]} 49... b2
{[%clk 0:02:03.3]} 0-1

[Event "*** Titled Tuesday Blitz"]
[Site "Chess.com"]
[Date "2019.10.01"]
[Round "8"]
[White "I-Mesquita"]
[Black "Andrei_Belozerov"]
[Result "0-1"]
[WhiteElo "2635"]
[BlackElo "2537"]
[TimeControl "180+2"]
[EndTime "14:57:39 PDT"]
[Termination "Andrei_Belozerov won by resignation"]

1. e4 {[%clk 0:03:01.9]} 1... c6 {[%clk 0:03:01.2]} 2. Nc3 {[%clk 0:03:00.9]}
2... d5 {[%clk 0:03:02.6]} 3. Nf3 {[%clk 0:03:02.4]} 3... Nf6 {[%clk 0:03:03.7]}
4. e5 {[%clk 0:02:53.4]} 4... Ne4 {[%clk 0:03:05]} 5. Ne2 {[%clk 0:02:42]} 5...
Qb6 {[%clk 0:03:04.3]} 6. d4 {[%clk 0:02:39.5]} 6... e6 {[%clk 0:03:05.7]} 7.
Ng3 {[%clk 0:02:37.4]} 7... c5 {[%clk 0:03:02.9]} 8. Bd3 {[%clk 0:02:33.3]} 8...
Nxg3 {[%clk 0:02:55.1]} 9. hxg3 {[%clk 0:02:34.3]} 9... Nc6 {[%clk 0:02:54.8]}
10. dxc5 {[%clk 0:02:21.4]} 10... Bxc5 {[%clk 0:02:54.9]} 11. O-O {[%clk
0:02:22.7]} 11... Bd7 {[%clk 0:02:45.3]} 12. c3 {[%clk 0:02:22.8]} 12... h6
{[%clk 0:02:38.1]} 13. b4 {[%clk 0:02:17.6]} 13... Be7 {[%clk 0:02:37.5]} 14. a3
{[%clk 0:01:58.7]} 14... O-O {[%clk 0:02:18.6]} 15. Qe2 {[%clk 0:01:46.5]} 15...
Rac8 {[%clk 0:02:10.8]} 16. Bb2 {[%clk 0:01:37.7]} 16... Rfd8 {[%clk 0:01:58.1]}
17. Rac1 {[%clk 0:01:34.1]} 17... Be8 {[%clk 0:01:52.4]} 18. Bb1 {[%clk
0:01:30.9]} 18... Bf8 {[%clk 0:01:49]} 19. c4 {[%clk 0:01:15.1]} 19... dxc4
{[%clk 0:01:45.7]} 20. Rxc4 {[%clk 0:01:16]} 20... Ne7 {[%clk 0:01:46.4]} 21.
Qc2 {[%clk 0:01:05.1]} 21... g6 {[%clk 0:01:39.7]} 22. Rc1 {[%clk 0:00:40.4]}
22... Bb5 {[%clk 0:01:24.9]} 23. Bd4 {[%clk 0:00:11.5]} 23... Rxc4 {[%clk
0:01:14.8]} 24. Qxc4 {[%clk 0:00:11.8]} 24... Bxc4 {[%clk 0:01:05]} 25. Bxb6
{[%clk 0:00:13.2]} 25... axb6 {[%clk 0:01:06.4]} 26. Rxc4 {[%clk 0:00:14.7]}
26... Rd1+ {[%clk 0:01:06.9]} 27. Kh2 {[%clk 0:00:16.3]} 27... Rxb1 {[%clk
0:01:08.4]} 28. Rc7 {[%clk 0:00:17.7]} 28... Rb3 {[%clk 0:01:01.7]} 29. Rxb7
{[%clk 0:00:17.8]} 29... Rxa3 {[%clk 0:01:02.4]} 30. Rxb6 {[%clk 0:00:19.2]}
30... Nd5 {[%clk 0:01:03.4]} 31. Rb8 {[%clk 0:00:20.2]} 31... Nxb4 {[%clk
0:01:04.1]} 32. Nd2 {[%clk 0:00:20.8]} 32... Nc6 {[%clk 0:01:03.9]} 33. Rc8
{[%clk 0:00:19.3]} 33... Nxe5 {[%clk 0:01:04.4]} 34. Ne4 {[%clk 0:00:20.7]}
34... Kg7 {[%clk 0:01:02.6]} 35. f4 {[%clk 0:00:21]} 35... Ng4+ {[%clk
0:01:02.9]} 36. Kh3 {[%clk 0:00:22.5]} 36... h5 {[%clk 0:01:00.9]} 37. Rc7
{[%clk 0:00:22.1]} 37... Ra1 {[%clk 0:01:00.1]} 38. Kh4 {[%clk 0:00:23.5]} 0-1

[Event "*** Titled Tuesday Blitz"]
[Site "Chess.com"]
[Date "2019.10.01"]
[Round "8"]
[White "Vojtap"]
[Black "CzechmVIII"]
[Result "0-1"]
[WhiteElo "2152"]
[BlackElo "2110"]
[TimeControl "180+2"]
[EndTime "14:57:48 PDT"]
[Termination "CzechmVIII won by resignation"]

1. e4 {[%clk 0:03:01.9]} 1... c5 {[%clk 0:02:59.6]} 2. Nf3 {[%clk 0:03:02]} 2...
d6 {[%clk 0:03:00.7]} 3. d4 {[%clk 0:03:03.1]} 3... cxd4 {[%clk 0:03:01.9]} 4.
Nxd4 {[%clk 0:03:03.4]} 4... Nf6 {[%clk 0:03:03.3]} 5. Nc3 {[%clk 0:03:03.8]}
5... g6 {[%clk 0:03:04.5]} 6. g3 {[%clk 0:03:04.3]} 6... Nc6 {[%clk 0:03:01.2]}
7. Nde2 {[%clk 0:03:03.3]} 7... b6 {[%clk 0:03:02]} 8. Bg2 {[%clk 0:03:04]} 8...
Ba6 {[%clk 0:03:02.8]} 9. O-O {[%clk 0:02:58.2]} 9... Bg7 {[%clk 0:03:01.4]} 10.
a4 {[%clk 0:02:47.6]} 10... Rc8 {[%clk 0:02:43.4]} 11. Nb5 {[%clk 0:02:31.9]}
11... O-O {[%clk 0:02:17.8]} 12. h3 {[%clk 0:02:31.7]} 12... Nd7 {[%clk
0:02:01]} 13. Rb1 {[%clk 0:02:15.8]} 13... Nc5 {[%clk 0:01:28.9]} 14. b3 {[%clk
0:02:16]} 14... Bb7 {[%clk 0:01:20.4]} 15. Bb2 {[%clk 0:01:57.8]} 15... Bxb2
{[%clk 0:01:18.9]} 16. Rxb2 {[%clk 0:01:58]} 16... a6 {[%clk 0:01:18.3]} 17.
Nbc3 {[%clk 0:01:52]} 17... Nb4 {[%clk 0:01:09.7]} 18. Nd5 {[%clk 0:01:43.3]}
18... a5 {[%clk 0:00:47.5]} 19. Nxb4 {[%clk 0:01:23.7]} 19... axb4 {[%clk
0:00:48.3]} 20. Qd4 {[%clk 0:01:23.9]} 20... Na6 {[%clk 0:00:34.9]} 21. c4
{[%clk 0:01:02.2]} 21... Nc5 {[%clk 0:00:27.4]} 22. Nf4 {[%clk 0:00:58.1]} 22...
e5 {[%clk 0:00:25.1]} 23. Qe3 {[%clk 0:00:48.7]} 23... exf4 {[%clk 0:00:26.2]}
24. Qxf4 {[%clk 0:00:49.6]} 24... Qe7 {[%clk 0:00:22.9]} 25. Re1 {[%clk
0:00:48.5]} 25... Qe5 {[%clk 0:00:24]} 26. Qd2 {[%clk 0:00:41.9]} 26... Qc3
{[%clk 0:00:23.6]} 27. Qxc3 {[%clk 0:00:29.4]} 27... bxc3 {[%clk 0:00:25.5]} 28.
Rbb1 {[%clk 0:00:30.1]} 28... Nd3 {[%clk 0:00:21.9]} 29. Re3 {[%clk 0:00:17.8]}
29... c2 {[%clk 0:00:22.2]} 30. Rf1 {[%clk 0:00:16.5]} 30... c1=Q {[%clk
0:00:22.4]} 31. Rxc1 {[%clk 0:00:16.1]} 31... Nxc1 {[%clk 0:00:23.6]} 0-1

[Event "*** Titled Tuesday Blitz"]
[Site "Chess.com"]
[Date "2019.10.01"]
[Round "8"]
[White "WorldChampionBulletChess"]
[Black "AndrewMcStone"]
[Result "0-1"]
[WhiteElo "2061"]
[BlackElo "2143"]
[TimeControl "180+2"]
[EndTime "14:57:57 PDT"]
[Termination "AndrewMcStone won by checkmate"]

1. d4 {[%clk 0:03:01.1]} 1... Nf6 {[%clk 0:02:59.4]} 2. Nc3 {[%clk 0:02:43.6]}
2... d5 {[%clk 0:02:47.8]} 3. Nf3 {[%clk 0:02:44.2]} 3... g6 {[%clk 0:02:47]} 4.
Bf4 {[%clk 0:02:43.5]} 4... Bg7 {[%clk 0:02:48.3]} 5. Ne5 {[%clk 0:02:38.5]}
5... c5 {[%clk 0:02:40.6]} 6. e3 {[%clk 0:02:38.8]} 6... O-O {[%clk 0:02:39.2]}
7. Be2 {[%clk 0:02:20.1]} 7... Nc6 {[%clk 0:02:25.1]} 8. O-O {[%clk 0:02:17.9]}
8... cxd4 {[%clk 0:02:25.1]} 9. exd4 {[%clk 0:02:19.8]} 9... Qb6 {[%clk
0:02:23]} 10. Na4 {[%clk 0:01:43.9]} 10... Qxd4 {[%clk 0:01:59.9]} 11. Nxc6
{[%clk 0:01:41.9]} 11... Qxf4 {[%clk 0:01:54.7]} 12. Nxe7+ {[%clk 0:01:41.6]}
12... Kh8 {[%clk 0:01:56.3]} 13. Nc5 {[%clk 0:01:34.3]} 13... Be6 {[%clk
0:01:37.8]} 14. Nxe6 {[%clk 0:01:33.5]} 14... fxe6 {[%clk 0:01:37.4]} 15. Bb5
{[%clk 0:01:02.3]} 15... Rf7 {[%clk 0:01:18.2]} 16. Nxg6+ {[%clk 0:00:48.1]}
16... hxg6 {[%clk 0:01:20.1]} 17. Qd3 {[%clk 0:00:44.8]} 17... Qf5 {[%clk
0:00:23.4]} 18. Qg3 {[%clk 0:00:19.9]} 18... Nh5 {[%clk 0:00:21.9]} 19. Qh4
{[%clk 0:00:14.5]} 19... Qf4 {[%clk 0:00:19]} 20. g4 {[%clk 0:00:14.6]} 20...
Be5 {[%clk 0:00:13.7]} 21. Qh3 {[%clk 0:00:11.6]} 21... Qxh2+ {[%clk 0:00:12.5]}
22. Qxh2 {[%clk 0:00:12.4]} 22... Bxh2+ {[%clk 0:00:14.4]} 23. Kxh2 {[%clk
0:00:14.3]} 23... Nf6 {[%clk 0:00:15.1]} 24. g5 {[%clk 0:00:15.3]} 24... Ne4
{[%clk 0:00:15.2]} 25. Bd3 {[%clk 0:00:13.5]} 25... Nxg5 {[%clk 0:00:12.4]} 26.
Bxg6 {[%clk 0:00:15.1]} 26... Rf6 {[%clk 0:00:13]} 27. Bd3 {[%clk 0:00:13.7]}
27... Rg8 {[%clk 0:00:11.3]} 28. Kg3 {[%clk 0:00:07.7]} 28... Ne4+ {[%clk
0:00:11.3]} 29. Kh4 {[%clk 0:00:05.7]} 29... Rh6# {[%clk 0:00:12.7]} 0-1

[Event "*** Titled Tuesday Blitz"]
[Site "Chess.com"]
[Date "2019.10.01"]
[Round "8"]
[White "comsac"]
[Black "chesstatour"]
[Result "1-0"]
[WhiteElo "2269"]
[BlackElo "2040"]
[TimeControl "180+2"]
[EndTime "14:58:01 PDT"]
[Termination "comsac won on time"]

1. e4 {[%clk 0:03:01.9]} 1... c6 {[%clk 0:03:00.4]} 2. d4 {[%clk 0:03:02.7]}
2... d5 {[%clk 0:03:02.3]} 3. exd5 {[%clk 0:03:04.5]} 3... cxd5 {[%clk
0:03:03.5]} 4. Bf4 {[%clk 0:03:06.4]} 4... Nc6 {[%clk 0:03:03.5]} 5. c3 {[%clk
0:03:07.2]} 5... g6 {[%clk 0:03:04.9]} 6. Bd3 {[%clk 0:03:08.4]} 6... Bg7 {[%clk
0:03:06.2]} 7. Nf3 {[%clk 0:03:09.5]} 7... Nh6 {[%clk 0:03:07.5]} 8. O-O {[%clk
0:03:09]} 8... O-O {[%clk 0:03:08.5]} 9. Nbd2 {[%clk 0:03:04.6]} 9... f6 {[%clk
0:03:08.1]} 10. Re1 {[%clk 0:03:04.1]} 10... Nf7 {[%clk 0:03:08.7]} 11. h3
{[%clk 0:02:43.3]} 11... e5 {[%clk 0:03:07]} 12. dxe5 {[%clk 0:02:45.2]} 12...
fxe5 {[%clk 0:03:08.1]} 13. Bh2 {[%clk 0:02:36.4]} 13... e4 {[%clk 0:03:07.7]}
14. Bxe4 {[%clk 0:02:37.7]} 14... dxe4 {[%clk 0:03:08]} 15. Rxe4 {[%clk
0:02:39.6]} 15... Bf5 {[%clk 0:02:58.8]} 16. Re1 {[%clk 0:02:34.4]} 16... Qd5
{[%clk 0:02:30.9]} 17. Qa4 {[%clk 0:02:26]} 17... a5 {[%clk 0:02:15.4]} 18. Rad1
{[%clk 0:02:26]} 18... b5 {[%clk 0:02:15.3]} 19. Qa3 {[%clk 0:02:18.1]} 19... b4
{[%clk 0:02:13.5]} 20. Qa4 {[%clk 0:02:13]} 20... Rfc8 {[%clk 0:01:47.7]} 21.
Ne4 {[%clk 0:01:59.8]} 21... Qc4 {[%clk 0:01:30.7]} 22. Nd6 {[%clk 0:01:58.6]}
22... Nxd6 {[%clk 0:01:29.5]} 23. Rxd6 {[%clk 0:01:54.6]} 23... Bf8 {[%clk
0:01:07.8]} 24. Rdd1 {[%clk 0:01:21.9]} 24... Qc5 {[%clk 0:00:48.2]} 25. Bf4
{[%clk 0:01:06]} 25... bxc3 {[%clk 0:00:31.7]} 26. bxc3 {[%clk 0:01:06]} 26...
Qxc3 {[%clk 0:00:22.6]} 27. Rc1 {[%clk 0:00:55.1]} 27... Qb4 {[%clk 0:00:22.7]}
28. Qd1 {[%clk 0:00:56.6]} 28... h6 {[%clk 0:00:17.1]} 29. Qd5+ {[%clk
0:00:55.6]} 29... Kh7 {[%clk 0:00:15.3]} 30. Qf7+ {[%clk 0:00:45.8]} 30... Bg7
{[%clk 0:00:14.5]} 31. Rxc6 {[%clk 0:00:42.5]} 31... Qxf4 {[%clk 0:00:13.6]} 32.
Re7 {[%clk 0:00:37.5]} 32... Rg8 {[%clk 0:00:10.9]} 33. Rcc7 {[%clk 0:00:31.2]}
33... Rac8 {[%clk 0:00:06]} 34. Rxc8 {[%clk 0:00:28.1]} 1-0

[Event "*** Titled Tuesday Blitz"]
[Site "Chess.com"]
[Date "2019.10.01"]
[Round "8"]
[White "GelmanAlexander"]
[Black "IMRosen"]
[Result "0-1"]
[WhiteElo "2499"]
[BlackElo "2634"]
[TimeControl "180+2"]
[EndTime "14:58:03 PDT"]
[Termination "IMRosen won by resignation"]

1. e4 {[%clk 0:03:00.2]} 1... e5 {[%clk 0:03:00.2]} 2. f4 {[%clk 0:02:59.2]}
2... d5 {[%clk 0:03:00.4]} 3. exd5 {[%clk 0:02:57.9]} 3... e4 {[%clk 0:03:02.3]}
4. d3 {[%clk 0:02:58.6]} 4... Nf6 {[%clk 0:03:03.2]} 5. dxe4 {[%clk 0:02:59.2]}
5... Nxe4 {[%clk 0:03:04.6]} 6. Qd4 {[%clk 0:02:59.2]} 6... Qh4+ {[%clk
0:02:42.2]} 7. g3 {[%clk 0:02:55.4]} 7... Nxg3 {[%clk 0:02:37.5]} 8. hxg3 {[%clk
0:02:36.4]} 8... Qxh1 {[%clk 0:02:33.1]} 9. Be3 {[%clk 0:01:33.9]} 9... Nd7
{[%clk 0:02:09.7]} 10. Nc3 {[%clk 0:01:16.1]} 10... Be7 {[%clk 0:01:58.2]} 11.
O-O-O {[%clk 0:00:39.9]} 11... Bf6 {[%clk 0:01:56.6]} 12. Qc4 {[%clk 0:00:26.6]}
12... O-O {[%clk 0:01:45.2]} 13. Bd3 {[%clk 0:00:21.5]} 13... Re8 {[%clk
0:01:29.9]} 14. Nge2 {[%clk 0:00:17.7]} 14... Qf3 {[%clk 0:01:24.6]} 15. Bd2
{[%clk 0:00:15.3]} 15... Nb6 {[%clk 0:01:17.6]} 16. Qxc7 {[%clk 0:00:14.3]}
16... Bg4 {[%clk 0:01:04.9]} 17. d6 {[%clk 0:00:08.2]} 17... Rac8 {[%clk
0:01:05.8]} 18. Bxh7+ {[%clk 0:00:06.1]} 18... Kf8 {[%clk 0:00:55.6]} 19. d7
{[%clk 0:00:06.1]} 19... Rxc7 {[%clk 0:00:51.8]} 20. dxe8=Q+ {[%clk 0:00:07.4]}
20... Kxe8 {[%clk 0:00:53.7]} 21. Nb5 {[%clk 0:00:06.7]} 21... Rc5 {[%clk
0:00:44.4]} 22. Re1 {[%clk 0:00:05.5]} 22... Kd7 {[%clk 0:00:26.5]} 23. Nec3
{[%clk 0:00:05.4]} 23... Nc4 {[%clk 0:00:22.1]} 24. Nxa7 {[%clk 0:00:02]} 24...
Bxc3 {[%clk 0:00:21.5]} 25. Bxc3 {[%clk 0:00:03]} 25... Ne3 {[%clk 0:00:22.1]}
26. Bd4 {[%clk 0:00:03.2]} 26... Rxc2+ {[%clk 0:00:22.7]} 27. Kb1 {[%clk
0:00:04.6]} 27... Re2 {[%clk 0:00:18.3]} 28. Rc1 {[%clk 0:00:04.6]} 28... Bf5+
{[%clk 0:00:19.5]} 29. Bxf5+ {[%clk 0:00:05.1]} 29... Nxf5 {[%clk 0:00:19.1]}
30. Be5 {[%clk 0:00:07]} 30... Qd3+ {[%clk 0:00:19.6]} 31. Ka1 {[%clk
0:00:08.2]} 31... Qc2 {[%clk 0:00:16.8]} 32. Rb1 {[%clk 0:00:08.6]} 32... Ne3
{[%clk 0:00:18.1]} 33. Nb5 {[%clk 0:00:09]} 33... Qxb1+ {[%clk 0:00:18.8]} 0-1

[Event "*** Titled Tuesday Blitz"]
[Site "Chess.com"]
[Date "2019.10.01"]
[Round "8"]
[White "PowerThinking2650"]
[Black "HouseOfDurin"]
[Result "1-0"]
[WhiteElo "2291"]
[BlackElo "2075"]
[TimeControl "180+2"]
[EndTime "14:58:05 PDT"]
[Termination "PowerThinking2650 won by checkmate"]

1. e4 {[%clk 0:03:01.9]} 1... c5 {[%clk 0:02:56.2]} 2. Nf3 {[%clk 0:03:02.6]}
2... Nc6 {[%clk 0:02:57.3]} 3. d4 {[%clk 0:03:02.9]} 3... cxd4 {[%clk
0:02:59.2]} 4. Nxd4 {[%clk 0:03:04.4]} 4... e5 {[%clk 0:03:00.3]} 5. Nb5 {[%clk
0:03:05.2]} 5... d6 {[%clk 0:03:01.1]} 6. N1c3 {[%clk 0:03:04.9]} 6... a6 {[%clk
0:03:02.1]} 7. Na3 {[%clk 0:03:06.4]} 7... b5 {[%clk 0:03:03.4]} 8. Nd5 {[%clk
0:03:06.5]} 8... Be6 {[%clk 0:03:04.8]} 9. c4 {[%clk 0:03:06.3]} 9... b4 {[%clk
0:03:04]} 10. Nc2 {[%clk 0:03:05.6]} 10... a5 {[%clk 0:03:04.2]} 11. Be3 {[%clk
0:03:06.5]} 11... Bxd5 {[%clk 0:02:54.9]} 12. cxd5 {[%clk 0:03:08.4]} 12... Nb8
{[%clk 0:02:52.3]} 13. Bb5+ {[%clk 0:03:08]} 13... Nd7 {[%clk 0:02:52.7]} 14.
O-O {[%clk 0:03:01.6]} 14... Nf6 {[%clk 0:02:52.9]} 15. f4 {[%clk 0:02:41.7]}
15... exf4 {[%clk 0:02:29.3]} 16. Rxf4 {[%clk 0:02:37.3]} 16... Be7 {[%clk
0:02:12.2]} 17. Nd4 {[%clk 0:02:38.1]} 17... O-O {[%clk 0:02:11.1]} 18. Nc6
{[%clk 0:02:34.7]} 18... Qe8 {[%clk 0:02:12.1]} 19. Qa4 {[%clk 0:02:16.6]} 19...
Bd8 {[%clk 0:01:57.8]} 20. Raf1 {[%clk 0:01:49.6]} 20... Bb6 {[%clk 0:01:26.5]}
21. Bxb6 {[%clk 0:01:32.6]} 21... Nxb6 {[%clk 0:01:28.4]} 22. Qd1 {[%clk
0:01:32.7]} 22... Nfd7 {[%clk 0:01:05.1]} 23. Qh5 {[%clk 0:01:12.8]} 23... g6
{[%clk 0:00:58.7]} 24. Qh6 {[%clk 0:01:12]} 24... f5 {[%clk 0:00:20.7]} 25. Nd4
{[%clk 0:01:12.1]} 25... Qe5 {[%clk 0:00:19.8]} 26. Ne6 {[%clk 0:00:58.9]} 26...
Rf7 {[%clk 0:00:19.3]} 27. Ng5 {[%clk 0:00:54.7]} 27... Rg7 {[%clk 0:00:14.2]}
28. exf5 {[%clk 0:00:41]} 28... Qe3+ {[%clk 0:00:14.9]} 29. Kh1 {[%clk
0:00:41.4]} 29... gxf5 {[%clk 0:00:13.6]} 30. Qe6+ {[%clk 0:00:33.5]} 30... Qxe6
{[%clk 0:00:13]} 31. Nxe6 {[%clk 0:00:35.4]} 31... Rf7 {[%clk 0:00:12.5]} 32.
Bc6 {[%clk 0:00:32.8]} 32... Rc8 {[%clk 0:00:10.7]} 33. Rxf5 {[%clk 0:00:32.9]}
33... Rxf5 {[%clk 0:00:09.7]} 34. Rxf5 {[%clk 0:00:34.8]} 34... Ne5 {[%clk
0:00:10.3]} 35. h4 {[%clk 0:00:31.8]} 35... Nxc6 {[%clk 0:00:11]} 36. dxc6
{[%clk 0:00:31.4]} 36... Rxc6 {[%clk 0:00:12.9]} 37. Rf8# {[%clk 0:00:32.5]} 1-0